bitfinex/quotes_BTCUSD_20241002
["timestamp","ask_amount","ask_price","bid_price","bid_amount"]
[1727875091811,0.166082,60945.0,60944.0,0.005638]
[1727875092052,0.19080772,60945.0,60944.0,0.0156488]
[1727875092354,0.18980772,60945.0,60944.0,0.001638]
[1727875092546,0.21793024,60945.0,60944.0,0.001638]
[1727875092781,0.18980772,60945.0,60944.0,0.001638]
[1727875093026,0.165082,60945.0,60944.0,0.005638]
[1727875093285,0.165082,60945.0,60944.0,0.0196488]
[1727875093781,0.19318738,60945.0,60944.0,0.0196488]
[1727875094028,0.19318738,60945.0,60944.0,0.005638]
[1727875094508,0.21076164,60945.0,60944.0,0.005638]
[1727875094975,0.21176164,60945.0,60944.0,0.005638]
[1727875095202,0.21339764,60945.0,60944.0,0.005638]
[1727875095466,0.21349807,60945.0,60944.0,0.005638]
[1727875095718,0.23231507,60945.0,60944.0,0.005638]
[1727875096209,0.25804209,60945.0,60944.0,0.005638]
[1727875096435,0.23231507,60945.0,60944.0,0.005638]
[1727875096921,0.06621738,60945.0,60944.0,0.005638]
[1727875097145,0.02124372,60945.0,60944.0,0.2032893]
[1727875097370,0.02124372,60945.0,60944.0,0.21732307]
[1727875097598,0.003636,60945.0,60944.0,0.21732307]
[1727875097857,0.003636,60945.0,60944.0,0.22060447]
[1727875098098,0.003636,60945.0,60944.0,0.05323807]
[1727875098589,0.18531508,60945.0,60944.0,0.01967177]
[1727875098846,0.167718,60945.0,60944.0,0.005638]
[1727875099073,0.20206022,60945.0,60944.0,0.005638]
[1727875099542,0.22778602,60945.0,60944.0,0.005638]
[1727875101445,0.22980171,60945.0,60944.0,0.005638]
[1727875101667,0.22791479,60945.0,60944.0,0.005638]
[1727875101899,0.06383279,60945.0,60944.0,0.03682245]
[1727875102160,0.0293618,60945.0,60944.0,0.93852968]
[1727875102397,0.0293618,60945.0,60944.0,0.91637911]
[1727875102398,0.003636,60945.0,60944.0,0.91637911]
[1727875103101,0.002636,60945.0,60944.0,0.91637911]
[1727875103333,0.002636,60945.0,60944.0,0.94927911]
[1727875104198,0.002636,60945.0,60944.0,1.11397356]
[1727875104637,0.001636,60945.0,60944.0,1.10997356]
[1727875104849,0.002636,60945.0,60944.0,1.11397356]
[1727875105136,0.003636,60945.0,60944.0,1.12997356]
[1727875105352,0.24625083,60955.0,60944.0,1.12997356]
[1727875105353,0.24625083,60955.0,60954.0,0.276758]
[1727875105576,0.24625083,60955.0,60954.0,0.44145245]
[1727875105807,0.24625083,60955.0,60954.0,0.45538693]
[1727875106032,0.001638,60956.0,60955.0,0.196955]
[1727875106251,0.001638,60956.0,60955.0,0.36164945]
[1727875106475,0.001638,60956.0,60955.0,0.51955278]
[1727875108501,0.002638,60956.0,60955.0,0.53355278]
[1727875109029,0.16769,60956.0,60955.0,0.03292804]
[1727875109240,0.16769,60956.0,60955.0,0.019]
[1727875109241,0.18539221,60956.0,60955.0,0.019]
[1727875109669,0.22802242,60956.0,60955.0,0.019]
[1727875110559,0.22802242,60956.0,60955.0,0.03286417]
[1727875111661,0.22786335,60956.0,60955.0,0.03286417]
[1727875112101,0.22786442,60956.0,60955.0,0.03286417]
[1727875112329,0.2111138,60956.0,60955.0,0.03286417]
[1727875112552,0.0470618,60956.0,60955.0,0.25271529]
[1727875112806,0.003638,60956.0,60955.0,0.4962902]
[1727875113024,0.003638,60956.0,60955.0,0.52590974]
[1727875114136,0.003638,60956.0,60955.0,0.71530974]
[1727875114363,0.003638,60956.0,60955.0,0.7643603]
[1727875114588,0.24625083,60972.0,60971.0,0.55299021]
[1727875114843,0.24625083,60972.0,60971.0,0.64109203]
[1727875115313,0.41025983,60972.0,60971.0,0.01376024]
[1727875115571,0.18156127,60972.0,60971.0,0.01376024]
[1727875115784,0.18156127,60972.0,60965.0,0.360955]
[1727875115785,0.01755227,60972.0,60965.0,0.360955]
[1727875116021,0.164007,60973.0,60971.0,0.01373873]
[1727875116280,0.04330059,60972.0,60968.0,0.328037]
[1727875116509,0.18159836,60971.0,60969.0,0.0689937]
[1727875117010,0.164015,60970.0,60969.0,0.0360937]
[1727875117012,0.02671523,60972.0,60963.0,0.408467]
[1727875117013,0.02771523,60972.0,60964.0,0.16403]
[1727875117273,0.02771523,60972.0,60963.0,0.0804]
[1727875117274,0.01758255,60971.0,60970.0,0.164015]
[1727875117507,0.02771523,60972.0,60971.0,0.164012]
[1727875117735,0.02771523,60972.0,60971.0,0.27431732]
[1727875117985,0.02771523,60972.0,60971.0,0.58689553]
[1727875118209,0.02671523,60972.0,60971.0,0.30721732]
[1727875118665,0.02571523,60972.0,60971.0,0.30721732]
[1727875119112,0.02671523,60972.0,60971.0,0.30721732]
[1727875119345,0.02571523,60972.0,60971.0,0.31621732]
[1727875119786,0.02671523,60972.0,60971.0,0.31921732]
[1727875120038,0.02571523,60972.0,60971.0,0.30721732]
[1727875120256,0.02671523,60972.0,60971.0,0.33121732]
[1727875121623,0.20823551,60972.0,60971.0,0.024]
[1727875123696,0.22506029,60972.0,60971.0,0.024]
[1727875123924,0.2250569,60972.0,60971.0,0.024]
[1727875124148,0.19934167,60972.0,60971.0,0.024]
[1727875124675,0.19934167,60972.0,60971.0,0.014]
[1727875125109,0.20034167,60972.0,60971.0,0.014]
[1727875125568,0.1,60971.0,60959.0,0.0329]
[1727875125816,0.164041,60960.0,60959.0,0.0992062]
[1727875126056,0.164037,60962.0,60960.0,0.01376416]
[1727875126297,0.164037,60962.0,60959.0,0.2107146]
[1727875126298,0.01757933,60961.0,60959.0,0.2107146]
[1727875126553,0.18975426,60963.0,60961.0,0.01375771]
[1727875126776,0.18160029,60962.0,60960.0,0.01376416]
[1727875126998,0.01756329,60961.0,60960.0,0.09226983]
[1727875127664,0.01756329,60961.0,60959.0,0.196943]
[1727875127893,0.01756329,60960.0,60959.0,0.196943]
[1727875129027,0.01756329,60960.0,60959.0,0.217943]
[1727875129251,0.01756329,60960.0,60959.0,0.206943]
[1727875129479,0.01756329,60960.0,60959.0,0.24650342]
[1727875129693,0.01956329,60960.0,60959.0,0.27050342]
[1727875130130,0.01956329,60960.0,60959.0,0.220943]
[1727875130368,0.01945469,60960.0,60959.0,0.220943]
[1727875131054,0.01945469,60960.0,60959.0,0.024]
[1727875131274,0.18349569,60960.0,60959.0,0.024]
[1727875131750,0.18513169,60960.0,60959.0,0.024]
[1727875133176,0.18513169,60960.0,60959.0,0.188044]
[1727875133177,0.02109069,60960.0,60959.0,0.188044]
[1727875133445,0.18513169,60960.0,60959.0,0.03783602]
[1727875133706,0.18714738,60960.0,60959.0,0.03783602]
[1727875133965,0.18513169,60960.0,60959.0,0.03783602]
[1727875134228,0.18513169,60960.0,60959.0,0.024]
[1727875134942,0.18513169,60960.0,60959.0,0.0428057]
[1727875135204,0.18513169,60960.0,60959.0,0.188044]
[1727875135205,0.02109069,60960.0,60959.0,0.188044]
[1727875135482,0.02109069,60960.0,60959.0,0.23477986]
[1727875135730,0.02109069,60960.0,60959.0,0.07073586]
[1727875135988,0.02109069,60960.0,60959.0,0.23477986]
[1727875136235,0.04681045,60960.0,60959.0,0.35184627]
[1727875138588,0.04681045,60960.0,60959.0,0.18780227]
[1727875138830,0.21086771,60960.0,60959.0,0.15490227]
[1727875139073,0.04682671,60960.0,60959.0,0.03783586]
[1727875139327,0.19339676,60960.0,60959.0,0.03783586]
[1727875139578,0.21288146,60960.0,60959.0,0.03783586]
[1727875139828,0.21086577,60960.0,60959.0,0.03783586]
[1727875140072,0.21086577,60960.0,60959.0,0.024]
[1727875140317,0.21086577,60960.0,60959.0,0.03799935]
[1727875140808,0.21086577,60960.0,60959.0,0.06149489]
[1727875141049,0.04682477,60960.0,60959.0,0.04749554]
[1727875141282,0.04682477,60960.0,60959.0,0.06149797]
[1727875141283,0.04683245,60960.0,60959.0,0.06149797]
[1727875141511,0.04683245,60960.0,60959.0,0.22554197]
[1727875141975,0.04683245,60960.0,60959.0,0.25844197]
[1727875142671,0.04683245,60960.0,60959.0,0.06149797]
[1727875143133,0.21087345,60960.0,60959.0,0.03800243]
[1727875143360,0.18515369,60960.0,60959.0,0.03800243]
[1727875143583,0.18515369,60960.0,60959.0,0.024]
[1727875146599,0.21087545,60960.0,60959.0,0.024]
[1727875146824,0.21087997,60960.0,60959.0,0.024]
[1727875147947,0.21289566,60960.0,60959.0,0.024]
[1727875148163,0.02935776,60960.0,60959.0,0.024]
[1727875148383,0.0467968,60960.0,60959.0,0.36697447]
[1727875148601,0.04680165,60960.0,60959.0,0.36697447]
[1727875148832,0.04674923,60960.0,60959.0,0.36697447]
[1727875150482,0.04674923,60960.0,60959.0,0.71786892]
[1727875150483,0.02935776,60960.0,60959.0,0.71786892]
[1727875150716,0.24625083,60982.0,60974.0,0.164004]
[1727875150956,0.24788883,60975.0,60974.0,0.44857771]
[1727875151196,0.001638,60975.0,60974.0,0.75106532]
[1727875151421,0.24625083,60982.0,60981.0,0.196885]
[1727875151646,0.24625083,60982.0,60981.0,0.71693139]
[1727875151875,0.001638,60984.0,60983.0,0.19688]
[1727875152109,0.001638,60984.0,60983.0,0.36357445]
[1727875152337,0.001638,60984.0,60983.0,0.42555588]
[1727875152569,0.001638,60984.0,60983.0,0.5144547]
[1727875152796,0.001638,60984.0,60983.0,0.44078418]
[1727875153325,0.001638,60984.0,60983.0,0.48983958]
[1727875153766,0.001638,60984.0,60983.0,0.48983687]
[1727875153991,0.001638,60984.0,60983.0,0.50383687]
[1727875154227,0.001638,60984.0,60983.0,0.45478418]
[1727875154450,0.001638,60984.0,60983.0,0.46878418]
[1727875154703,0.001638,60984.0,60983.0,0.45478418]
[1727875154927,0.001638,60984.0,60983.0,0.46878418]
[1727875155157,0.001638,60984.0,60983.0,0.13810973]
[1727875155616,0.001638,60984.0,60983.0,0.28808973]
[1727875156077,0.001638,60984.0,60983.0,0.09120973]
[1727875156078,0.165615,60984.0,60983.0,0.09120973]
[1727875156309,0.001638,60984.0,60983.0,0.10520973]
[1727875156532,0.001638,60984.0,60983.0,0.17798]
[1727875156793,0.001638,60984.0,60983.0,0.04282946]
[1727875157282,0.001638,60984.0,60983.0,0.36078323]
[1727875157499,0.001638,60984.0,60983.0,0.37150391]
[1727875157715,0.001638,60984.0,60983.0,0.50271662]
[1727875158140,0.001638,60984.0,60983.0,0.52161662]
[1727875158685,0.001638,60984.0,60983.0,0.53561662]
[1727875158929,0.001638,60984.0,60983.0,0.61371662]
[1727875159192,0.001638,60984.0,60983.0,0.58771662]
[1727875159457,0.02734332,60984.0,60983.0,0.59971662]
[1727875159714,0.02734332,60984.0,60983.0,0.58571662]
[1727875159971,0.02734332,60984.0,60983.0,0.59971662]
[1727875160212,0.02734332,60984.0,60983.0,0.58571662]
[1727875160679,0.02734332,60984.0,60983.0,0.61371662]
[1727875160916,0.02734332,60984.0,60983.0,0.59971662]
[1727875161203,0.02734332,60984.0,60983.0,0.58571662]
[1727875161455,0.02734332,60984.0,60983.0,0.59971662]
[1727875161690,0.02734332,60984.0,60983.0,0.43502217]
[1727875161926,0.02734332,60984.0,60983.0,0.42102217]
[1727875162163,0.02734332,60984.0,60983.0,0.44902217]
[1727875162636,0.001638,60984.0,60983.0,0.44902217]
[1727875163167,0.001638,60984.0,60983.0,0.43502217]
[1727875163414,0.001638,60984.0,60983.0,0.59971662]
[1727875163944,0.001638,60984.0,60983.0,0.58571662]
[1727875164177,0.001638,60984.0,60983.0,0.59971662]
[1727875164434,0.001638,60984.0,60983.0,0.61371662]
[1727875164946,0.001638,60984.0,60983.0,0.59971662]
[1727875165400,0.001638,60984.0,60983.0,0.61571662]
[1727875166120,0.001638,60984.0,60983.0,0.60171662]
[1727875166339,0.001638,60984.0,60983.0,0.61571662]
[1727875166557,0.001638,60984.0,60983.0,0.60171662]
[1727875166775,0.001638,60984.0,60983.0,0.61571662]
[1727875167236,0.02734289,60984.0,60983.0,0.61571662]
[1727875169192,0.02734289,60984.0,60983.0,0.53561662]
[1727875172928,0.02734289,60984.0,60983.0,0.64061662]
[1727875173188,0.001638,60984.0,60983.0,0.64061662]
[1727875173705,0.001638,60984.0,60983.0,0.90681662]
[1727875173969,0.001638,60984.0,60983.0,0.90881662]
[1727875174700,0.001638,60984.0,60983.0,0.89481662]
[1727875174937,0.001638,60984.0,60983.0,0.90881662]
[1727875175424,0.001638,60984.0,60983.0,0.04282946]
[1727875175697,0.165615,60984.0,60983.0,0.04282946]
[1727875175933,0.001638,60984.0,60983.0,0.02387381]
[1727875176170,0.001638,60984.0,60983.0,0.028]
[1727875176438,0.001638,60984.0,60983.0,0.20185381]
[1727875176673,0.001638,60984.0,60983.0,0.0469]
[1727875176939,0.001638,60984.0,60983.0,0.26419103]
[1727875177194,0.001638,60984.0,60983.0,0.28806484]
[1727875177674,0.001638,60984.0,60983.0,0.11336407]
[1727875177946,0.001638,60984.0,60983.0,0.44203854]
[1727875178174,0.001638,60984.0,60983.0,0.45075929]
[1727875178902,0.001638,60984.0,60983.0,0.43875929]
[1727875179399,0.001638,60984.0,60983.0,0.42475929]
[1727875179639,0.001638,60984.0,60983.0,0.43875929]
[1727875179890,0.001638,60984.0,60983.0,0.42475929]
[1727875180124,0.001638,60984.0,60983.0,0.43875929]
[1727875180361,0.001638,60984.0,60983.0,0.45075929]
[1727875180610,0.001638,60984.0,60983.0,0.43675929]
[1727875180882,0.001638,60984.0,60983.0,0.45075929]
[1727875181363,0.001638,60984.0,60983.0,0.43875929]
[1727875181621,0.001638,60984.0,60983.0,0.27477929]
[1727875181864,0.01850687,60984.0,60983.0,0.28777929]
[1727875182647,0.01850687,60984.0,60983.0,0.45175929]
[1727875185787,0.01859242,60984.0,60983.0,0.12308484]
[1727875186020,0.01859242,60984.0,60983.0,0.06977381]
[1727875186021,0.1825679,60984.0,60983.0,0.06977381]
[1727875186252,0.0185909,60984.0,60983.0,0.06977381]
[1727875187617,0.0185909,60984.0,60983.0,0.23375381]
[1727875188068,0.0185909,60984.0,60983.0,0.40172755]
[1727875188293,0.0185909,60984.0,60983.0,0.39844826]
[1727875188517,0.0185909,60984.0,60983.0,0.56333008]
[1727875188794,0.01869629,60984.0,60983.0,0.56333008]
[1727875189027,0.001638,60984.0,60983.0,0.56333008]
[1727875189907,0.001638,60984.0,60983.0,0.55345627]
[1727875190130,0.001638,60984.0,60983.0,0.56339453]
[1727875190359,0.01863249,60984.0,60983.0,0.56339453]
[1727875190581,0.001638,60984.0,60983.0,0.56339453]
[1727875191316,0.01866117,60984.0,60983.0,0.56339453]
[1727875191797,0.01866117,60984.0,60983.0,0.23472008]
[1727875192037,0.01866117,60984.0,60983.0,0.06983826]
[1727875192478,0.18263817,60984.0,60983.0,0.06983826]
[1727875192957,0.1826937,60984.0,60983.0,0.06983826]
[1727875193176,0.19977227,60984.0,60983.0,0.06983826]
[1727875193394,0.19977227,60984.0,60983.0,0.0599]
[1727875193876,0.19977227,60984.0,60983.0,0.0469]
[1727875194095,0.19977227,60984.0,60983.0,0.0589]
[1727875194531,0.19977227,60984.0,60983.0,0.0449]
[1727875194749,0.19977227,60984.0,60983.0,0.00993655]
[1727875194980,0.163992,60979.0,60975.0,0.164819]
[1727875195197,0.01707857,60978.0,60976.0,0.09765673]
[1727875195421,0.001638,60984.0,60976.0,0.10763836]
[1727875195651,0.163985,60981.0,60978.0,0.163992]
[1727875196164,0.01708167,60980.0,60979.0,0.00996231]
[1727875196360,0.01708167,60980.0,60979.0,0.11508634]
[1727875197042,0.01708167,60980.0,60979.0,0.27907634]
[1727875198377,0.01708167,60980.0,60979.0,0.83732071]
[1727875198606,0.02571032,60981.0,60980.0,0.196888]
[1727875198874,0.02571032,60981.0,60980.0,0.46311787]
[1727875199099,0.02571032,60981.0,60980.0,0.63470129]
[1727875199546,0.02571032,60981.0,60980.0,0.61021098]
[1727875199766,0.02571032,60981.0,60980.0,0.61021127]
[1727875200717,0.02571032,60981.0,60980.0,0.53644507]
[1727875200928,0.02571032,60981.0,60980.0,0.22176262]
[1727875201173,0.04266274,60981.0,60980.0,0.22176262]
[1727875201429,0.20664774,60981.0,60980.0,0.0379808]
[1727875201655,0.20664774,60981.0,60980.0,0.0239808]
[1727875201881,0.04266274,60981.0,60977.0,0.327989]
[1727875202123,0.02571032,60981.0,60980.0,0.012]
[1727875202373,0.04277654,60981.0,60980.0,0.012]
[1727875202626,0.04277654,60981.0,60980.0,0.02250597]
[1727875202862,0.01706622,60981.0,60980.0,0.19449397]
[1727875203092,0.01706622,60981.0,60980.0,0.29202198]
[1727875203346,0.001638,60984.0,60983.0,0.19688]
[1727875203563,0.01871712,60984.0,60983.0,0.16398]
[1727875203780,0.01871712,60984.0,60983.0,0.17448459]
[1727875204115,0.01871712,60984.0,60983.0,0.33936641]
[1727875204339,0.01871712,60984.0,60983.0,0.17538641]
[1727875204834,0.01871712,60984.0,60983.0,0.33936641]
[1727875205068,0.01871712,60984.0,60983.0,0.35736641]
[1727875205556,0.01871712,60984.0,60983.0,0.37226641]
[1727875206051,0.01871712,60984.0,60983.0,0.38326641]
[1727875206319,0.01871712,60984.0,60983.0,0.64629211]
[1727875206601,0.001638,60984.0,60983.0,0.67087506]
[1727875206833,0.001638,60986.0,60985.0,0.278274]
[1727875207051,0.24625083,60996.0,60995.0,0.196847]
[1727875207307,0.24625083,60996.0,60995.0,0.71761966]
[1727875207527,0.24625083,61003.0,61002.0,0.196829]
[1727875207810,0.24625083,61003.0,61002.0,0.71489901]
[1727875208026,0.001638,61006.0,61005.0,0.19682]
[1727875208254,0.001638,61006.0,61005.0,0.36151445]
[1727875208481,0.001638,61006.0,61005.0,0.4209766]
[1727875208704,0.001638,61006.0,61005.0,0.3718449]
[1727875209678,0.001638,61017.0,61015.0,0.163894]
[1727875209679,0.24625083,61016.0,61015.0,0.163894]
[1727875209917,0.001638,61017.0,61016.0,0.47646921]
[1727875210357,0.001638,61017.0,61016.0,0.48662244]
[1727875210584,0.001638,61017.0,61016.0,0.59162244]
[1727875210847,0.00164,61026.0,61025.0,0.301767]
[1727875211116,0.00164,61026.0,61025.0,0.57091555]
[1727875211358,0.00164,61026.0,61025.0,0.47768749]
[1727875211579,0.00164,61026.0,61025.0,0.7593657]
[1727875212022,0.00164,61026.0,61025.0,0.92406015]
[1727875212245,0.00164,61026.0,61025.0,0.91906015]
[1727875212472,0.00164,61026.0,61025.0,0.93806015]
[1727875212692,0.00164,61026.0,61025.0,0.93106015]
[1727875213137,0.00164,61026.0,61025.0,0.93806015]
[1727875213795,0.00164,61026.0,61025.0,0.92406015]
[1727875214113,0.00164,61026.0,61025.0,0.81706015]
[1727875214114,0.00164,61026.0,61025.0,0.83106015]
[1727875214777,0.00164,61026.0,61025.0,0.46848194]
[1727875215280,0.00164,61026.0,61025.0,0.76216015]
[1727875215725,0.00164,61026.0,61025.0,0.74816015]
[1727875215959,0.00164,61026.0,61025.0,0.76216015]
[1727875216628,0.00164,61026.0,61025.0,0.86916015]
[1727875216853,0.00164,61026.0,61025.0,0.85316015]
[1727875217105,0.00164,61026.0,61025.0,0.86216015]
[1727875217324,0.00164,61026.0,61025.0,0.85316015]
[1727875217536,0.00164,61026.0,61025.0,0.86716015]
[1727875217779,0.00164,61026.0,61025.0,0.46848194]
[1727875218422,0.0273277,61026.0,61025.0,0.46848194]
[1727875218862,0.0273277,61026.0,61025.0,0.07096799]
[1727875219121,0.0273277,61026.0,61025.0,0.02406799]
[1727875219947,0.0273277,61026.0,61025.0,0.01006799]
[1727875220168,0.0273277,61026.0,61025.0,0.18793499]
[1727875220415,0.0273277,61026.0,61025.0,0.20193499]
[1727875220629,0.0273277,61026.0,61025.0,0.27696859]
[1727875220858,0.0273277,61026.0,61025.0,0.26624565]
[1727875221073,0.0273277,61026.0,61025.0,0.44166304]
[1727875221291,0.0273277,61026.0,61025.0,0.43366304]
[1727875221509,0.0273277,61026.0,61025.0,0.46056304]
[1727875221758,0.0273277,61026.0,61025.0,0.56756304]
[1727875222001,0.0273277,61026.0,61025.0,0.84624125]
[1727875222413,0.0273277,61026.0,61025.0,0.86024125]
[1727875223078,0.0273277,61026.0,61025.0,0.85424125]
[1727875223505,0.0273277,61026.0,61025.0,0.87024125]
[1727875223733,0.0273277,61026.0,61025.0,0.86824125]
[1727875223946,0.0273277,61026.0,61025.0,0.84024125]
[1727875224154,0.0273277,61026.0,61025.0,0.85424125]
[1727875224391,0.0273277,61026.0,61025.0,0.86824125]
[1727875225669,0.0273277,61026.0,61025.0,0.85424125]
[1727875225894,0.0273277,61026.0,61025.0,0.86824125]
[1727875226102,0.00164,61026.0,61025.0,0.86824125]
[1727875226982,0.00164,61026.0,61025.0,0.85424125]
[1727875227419,0.00164,61029.0,61028.0,0.196759]
[1727875227642,0.00164,61033.0,61030.0,0.201753]
[1727875227858,0.00164,61033.0,61030.0,0.46972347]
[1727875228077,0.00164,61033.0,61030.0,0.47635288]
[1727875228299,0.00164,61033.0,61030.0,0.47835288]
[1727875228942,0.00164,61033.0,61030.0,0.75803109]
[1727875229149,0.02732125,61031.0,61030.0,0.80407544]
[1727875229368,0.02732125,61031.0,61030.0,0.81807544]
[1727875230506,0.02732125,61031.0,61030.0,0.80407544]
[1727875230740,0.00164,61033.0,61032.0,0.301748]
[1727875230955,0.00164,61033.0,61032.0,0.56942714]
[1727875231389,0.00164,61033.0,61032.0,0.64302714]
[1727875231833,0.00164,61033.0,61032.0,0.65902714]
[1727875232281,0.00164,61033.0,61032.0,0.64502714]
[1727875232505,0.24706883,61044.0,61032.0,0.64502714]
[1727875232506,0.000818,61044.0,61038.0,0.005]
[1727875232735,0.00164,61047.0,61046.0,0.19671]
[1727875232953,0.00164,61047.0,61046.0,0.46016717]
[1727875234268,0.00164,61047.0,61046.0,0.47416717]
[1727875234495,0.00164,61047.0,61046.0,0.48816717]
[1727875235372,0.41083083,61065.0,61051.0,0.196697]
[1727875235588,0.41083083,61065.0,61051.0,0.65076489]
[1727875235811,0.41083083,61065.0,61061.0,0.163768]
[1727875236257,0.41083083,61065.0,61062.0,0.00962456]
[1727875236467,0.16458,61065.0,61062.0,0.00962456]
[1727875236688,0.000818,61065.0,61062.0,0.17339156]
[1727875237182,0.000818,61065.0,61062.0,0.00962456]
[1727875238066,0.164577,61065.0,61062.0,0.00962456]
[1727875238277,0.164577,61065.0,61062.0,0.17739156]
[1727875238502,0.000818,61065.0,61064.0,0.163762]
[1727875238730,0.000818,61065.0,61064.0,0.17333002]
[1727875238971,0.02649123,61065.0,61064.0,0.20950485]
[1727875239189,0.02649123,61065.0,61064.0,0.37092447]
[1727875239404,0.02649123,61065.0,61064.0,0.46201659]
[1727875239405,0.000818,61065.0,61064.0,0.46201659]
[1727875239681,0.000818,61088.0,61081.0,0.163717]
[1727875239682,0.24625083,61082.0,61081.0,0.163717]
[1727875239850,0.24625083,61082.0,61073.0,0.196638]
[1727875239851,0.24625083,61074.0,61073.0,0.196638]
[1727875240077,0.40996583,61082.0,61081.0,0.0094412]
[1727875240293,0.163717,61081.0,61077.0,0.163726]
[1727875240502,0.24625083,61083.0,61074.0,0.0329]
[1727875240738,0.163722,61079.0,61075.0,0.20828616]
[1727875240966,0.163722,61079.0,61076.0,0.00947263]
[1727875241171,0.163725,61078.0,61075.0,0.04455416]
[1727875241417,0.163727,61077.0,61076.0,0.0677146]
[1727875241630,0.163727,61077.0,61076.0,0.00944828]
[1727875242057,0.16373,61076.0,61075.0,0.06855416]
[1727875242316,0.163727,61077.0,61075.0,0.011]
[1727875242526,0.327404,61087.0,61076.0,0.02344828]
[1727875242745,0.57366983,61084.0,61077.0,0.06081711]
[1727875242963,0.37987821,61099.0,61079.0,0.0329]
[1727875242964,0.327389,61090.0,61079.0,0.0329]
[1727875243180,0.24625083,61084.0,61076.0,0.163729]
[1727875243388,0.327419,61084.0,61077.0,0.00935964]
[1727875243606,0.327419,61084.0,61078.0,0.19990606]
[1727875243607,0.163716,61082.0,61078.0,0.19990606]
[1727875243840,0.327419,61084.0,61078.0,0.19990606]
[1727875243841,0.163718,61081.0,61078.0,0.04553528]
[1727875244063,0.427541,61099.0,61079.0,0.03869963]
[1727875244280,0.427541,61099.0,61079.0,0.20242063]
[1727875244281,0.163712,61083.0,61079.0,0.20242063]
[1727875244487,0.163714,61082.0,61080.0,0.00934038]
[1727875244692,0.000818,61088.0,61080.0,0.10232589]
[1727875244948,0.327402,61087.0,61080.0,0.33677838]
[1727875245169,0.163704,61086.0,61083.0,0.16371]
[1727875245403,0.000818,61088.0,61084.0,0.0093147]
[1727875245620,0.163706,61085.0,61084.0,0.0093147]
[1727875245833,0.163717,61081.0,61076.0,0.163729]
[1727875246044,0.163717,61081.0,61075.0,0.24625083]
[1727875246045,0.163718,61081.0,61077.0,0.23747148]
[1727875246279,0.163711,61083.0,61080.0,0.005]
[1727875246496,0.24625083,61081.0,61080.0,0.005]
[1727875246738,0.0256684,61085.0,61079.0,0.002]
[1727875246739,0.163719,61080.0,61079.0,0.002]
[1727875246979,0.327422,61084.0,61073.0,0.24625083]
[1727875246980,0.163731,61076.0,61073.0,0.24625083]
[1727875247241,0.327455,61078.0,61073.0,0.46467935]
[1727875247242,0.163727,61077.0,61073.0,0.46467935]
[1727875247478,0.163725,61078.0,61075.0,0.163732]
[1727875247729,0.02567054,61077.0,61076.0,0.16373]
[1727875247935,0.02567054,61077.0,61076.0,0.09833675]
[1727875248182,0.02567054,61077.0,61075.0,0.196632]
[1727875248444,0.02567054,61077.0,61075.0,0.0329]
[1727875248704,0.02567054,61077.0,61075.0,0.014]
[1727875248940,0.02567054,61077.0,61073.0,0.014]
[1727875248941,0.163735,61074.0,61073.0,0.014]
[1727875249598,0.163735,61074.0,61073.0,0.0177748]
[1727875249817,0.02567054,61077.0,61076.0,0.013]
[1727875250066,0.02567054,61077.0,61076.0,0.17673]
[1727875250295,0.02567054,61077.0,61076.0,0.19663]
[1727875251383,0.02567054,61077.0,61076.0,0.20663]
[1727875251594,0.02567054,61077.0,61076.0,0.35410342]
[1727875252013,0.02567054,61077.0,61076.0,0.53079787]
[1727875252227,0.02567054,61077.0,61076.0,0.51879787]
[1727875252439,0.02648854,61077.0,61076.0,0.51879787]
[1727875252697,0.24625083,61093.0,61087.0,0.1637]
[1727875253182,0.24625083,61093.0,61087.0,0.1966]
[1727875253932,0.163672,61098.0,61087.0,0.40998604]
[1727875254183,0.0002,61099.0,61087.0,0.40998604]
[1727875254184,0.0002,61099.0,61087.0,0.41201063]
[1727875254412,0.0002,61099.0,61087.0,0.53764855]
[1727875254624,0.0002,61099.0,61087.0,0.48893237]
[1727875254835,0.0002,61099.0,61087.0,0.50093237]
[1727875255077,0.0002,61099.0,61087.0,0.60293237]
[1727875255279,0.0002,61099.0,61087.0,0.71235955]
[1727875255502,0.0002,61099.0,61087.0,0.60093237]
[1727875255718,0.0002,61099.0,61087.0,0.61493237]
[1727875255931,0.0002,61099.0,61087.0,0.61993237]
[1727875256156,0.0002,61099.0,61087.0,0.59393237]
[1727875256405,0.0002,61099.0,61087.0,0.71934806]
[1727875256857,0.0002,61099.0,61087.0,0.71539844]
[1727875257097,0.02647852,61095.0,61087.0,0.99507665]
[1727875257343,0.02647852,61095.0,61087.0,0.91166096]
[1727875257344,0.000818,61095.0,61087.0,0.91166096]
[1727875257584,0.000818,61095.0,61087.0,0.90157534]
[1727875257828,0.000818,61095.0,61087.0,0.82856096]
[1727875258067,0.000818,61095.0,61087.0,0.49756057]
[1727875258309,0.164498,61095.0,61087.0,0.44888275]
[1727875258555,0.000818,61095.0,61087.0,0.44888275]
[1727875258795,0.000818,61095.0,61087.0,0.2841883]
[1727875259650,0.164498,61095.0,61087.0,0.2701883]
[1727875259862,0.164498,61095.0,61087.0,0.2561883]
[1727875260079,0.02648134,61088.0,61087.0,0.07095038]
[1727875260330,0.000818,61088.0,61087.0,0.23465038]
[1727875260790,0.000818,61088.0,61087.0,0.07095038]
[1727875260997,0.000818,61088.0,61087.0,0.23465038]
[1727875261465,0.000818,61088.0,61087.0,0.07095038]
[1727875261670,0.000818,61088.0,61087.0,0.03805038]
[1727875262118,0.000818,61088.0,61087.0,0.1917]
[1727875262378,0.000818,61088.0,61087.0,0.25696529]
[1727875262622,0.000818,61088.0,61087.0,0.09326529]
[1727875262862,0.000818,61088.0,61087.0,0.02406329]
[1727875263154,0.164516,61088.0,61087.0,0.01306329]
[1727875263356,0.164516,61088.0,61087.0,0.1677]
[1727875263357,0.000818,61088.0,61087.0,0.1677]
[1727875263603,0.02648485,61088.0,61087.0,0.0140638]
[1727875263809,0.02648485,61088.0,61087.0,0.0130638]
[1727875264027,0.19018285,61088.0,61087.0,0.0130638]
[1727875264229,0.19018285,61088.0,61087.0,0.0190638]
[1727875264460,0.164516,61088.0,61087.0,0.0160638]
[1727875264706,0.000818,61088.0,61087.0,0.0180638]
[1727875264967,0.000818,61088.0,61087.0,0.0150638]
[1727875265553,0.000818,61088.0,61087.0,0.0220638]
[1727875266784,0.000818,61088.0,61087.0,0.1857638]
[1727875267037,0.000818,61088.0,61087.0,0.24037168]
[1727875267519,0.02648381,61088.0,61087.0,0.1857638]